[Event "Pobeskydi 2026"]
[Site "Frydek-Mistek, Czech Republic"]
[Date "2026.04.06"]
[Round "9.8"]
[White "Sigut, Ondrej"]
[Black "Vanek, Martin"]
[Result "1-0"]
[TimeControl "90 min+30s/move"]
[WhiteTitle "-"]
[BlackTitle "-"]
[WhiteFideId "23712813"]
[BlackFideId "23769238"]
[WhiteElo "2016"]
[BlackElo "1905"]

1. e4 {[%clk 01:30:58]} {[%emt 00:00:02]} e6 {[%clk 01:30:55]} {[%emt
00:00:05]} 2. d4 {[%clk 01:31:25]} {[%emt 00:00:03]} d5 {[%clk 01:31:21]}
{[%emt 00:00:05]} 3. Nd2 {[%clk 01:31:51]} {[%emt 00:00:04]} c5 {[%clk
01:31:47]} {[%emt 00:00:04]} 4. exd5 {[%clk 01:32:17]} {[%emt 00:00:04]} Qxd5
{[%clk 01:32:13]} {[%emt 00:00:04]} 5. Ngf3 {[%clk 01:32:42]} {[%emt 00:00:05]}
cxd4 {[%clk 01:32:36]} {[%emt 00:00:06]} 6. Bc4 {[%clk 01:33:06]} {[%emt
00:00:06]} Qd7 {[%clk 01:33:01]} {[%emt 00:00:06]} 7. O-O {[%clk 01:33:28]}
{[%emt 00:00:08]} Nc6 {[%clk 01:32:21]} {[%emt 00:01:10]} 8. Nb3 {[%clk
01:33:52]} {[%emt 00:00:07]} a6 {[%clk 01:31:41]} {[%emt 00:01:10]} 9. Nbxd4
{[%clk 01:33:00]} {[%emt 00:01:21]} Nxd4 {[%clk 01:32:00]} {[%emt 00:00:11]} 10.
Nxd4 {[%clk 01:33:25]} {[%emt 00:00:04]} Qc7 {[%clk 01:31:54]} {[%emt
00:00:36]} 11. Qe2 {[%clk 01:30:06]} {[%emt 00:03:50]} Bd6 {[%clk 01:27:01]}
{[%emt 00:05:23]} 12. h3 {[%clk 01:28:16]} {[%emt 00:02:19]} Ne7 {[%clk
01:25:57]} {[%emt 00:01:34]} 13. Rd1 {[%clk 01:22:15]} {[%emt 00:06:31]} e5
{[%clk 01:09:50]} {[%emt 00:16:37]} 14. Nf3 {[%clk 01:15:42]} {[%emt 00:07:03]}
O-O {[%clk 01:02:56]} {[%emt 00:07:24]} 15. Bb3 {[%clk 01:10:18]} {[%emt
00:05:54]} Bf5 {[%clk 00:55:24]} {[%emt 00:08:02]} 16. Nh4 {[%clk 01:01:15]}
{[%emt 00:09:34]} Bg6 {[%clk 00:47:56]} {[%emt 00:07:58]} 17. Nxg6 {[%clk
00:57:49]} {[%emt 00:03:55]} Nxg6 {[%clk 00:45:46]} {[%emt 00:02:40]} 18. c3
{[%clk 00:56:32]} {[%emt 00:01:48]} Rad8 {[%clk 00:43:27]} {[%emt 00:02:49]} 19.
Be3 {[%clk 00:54:02]} {[%emt 00:03:00]} Nf4 {[%clk 00:37:33]} {[%emt 00:06:23]}
20. Qc4 {[%clk 00:50:46]} {[%emt 00:03:47]} Qe7 {[%clk 00:35:34]} {[%emt
00:02:28]} 21. Qe4 {[%clk 00:47:44]} {[%emt 00:03:32]} Ne6 {[%clk 00:24:14]}
{[%emt 00:11:50]} 22. Bb6 {[%clk 00:42:17]} {[%emt 00:05:57]} Rde8 {[%clk
00:22:24]} {[%emt 00:02:20]} 23. Ba4 {[%clk 00:32:32]} {[%emt 00:10:15]} Rc8
{[%clk 00:21:55]} {[%emt 00:00:59]} 24. Qd5 {[%clk 00:27:37]} {[%emt 00:05:26]}
Bc5 {[%clk 00:19:30]} {[%emt 00:02:54]} 25. Bxc5 {[%clk 00:27:08]} {[%emt
00:00:59]} Nxc5 {[%clk 00:16:50]} {[%emt 00:03:11]} 26. Bc2 {[%clk 00:27:05]}
{[%emt 00:00:33]} Rfd8 {[%clk 00:15:20]} {[%emt 00:01:59]} 27. Qf3 {[%clk
00:26:19]} {[%emt 00:01:16]} g6 {[%clk 00:14:51]} {[%emt 00:00:59]} 28. Qe3
{[%clk 00:24:25]} {[%emt 00:02:25]} Rxd1+ {[%clk 00:10:53]} {[%emt 00:04:28]}
29. Rxd1 {[%clk 00:24:20]} {[%emt 00:00:34]} Re8 {[%clk 00:09:49]} {[%emt
00:01:34]} 30. Rd5 {[%clk 00:20:35]} {[%emt 00:04:16]} Nd7 {[%clk 00:09:55]}
{[%emt 00:00:24]} 31. Ba4 {[%clk 00:19:57]} {[%emt 00:01:08]} b5 {[%clk
00:10:18]} {[%emt 00:00:07]} 32. Bb3 {[%clk 00:19:55]} {[%emt 00:00:32]} Nf6
{[%clk 00:09:38]} {[%emt 00:01:10]} 33. Rd1 {[%clk 00:20:10]} {[%emt 00:00:15]}
e4 {[%clk 00:07:01]} {[%emt 00:03:07]} 34. Qb6 {[%clk 00:17:41]} {[%emt
00:02:58]} Nh5 {[%clk 00:05:07]} {[%emt 00:02:24]} 35. Qd6 {[%clk 00:16:48]}
{[%emt 00:01:23]} Qg5 {[%clk 00:05:04]} {[%emt 00:00:34]} 36. Qd5 {[%clk
00:15:58]} {[%emt 00:01:20]} Qf6 {[%clk 00:04:49]} {[%emt 00:00:44]} 37. Qd7
{[%clk 00:15:37]} {[%emt 00:00:51]} Re7 {[%clk 00:03:37]} {[%emt 00:01:42]} 38.
Qd8+ {[%clk 00:15:14]} {[%emt 00:00:54]} Kg7 {[%clk 00:04:00]} {[%emt
00:00:07]} 39. Qd4 {[%clk 00:14:06]} {[%emt 00:01:38]} Re5 {[%clk 00:04:11]}
{[%emt 00:00:19]} 40. Qe3 {[%clk 00:12:26]} {[%emt 00:02:09]} Nf4 {[%clk
00:02:57]} {[%emt 00:01:44]} 41. Rd7 {[%clk 00:11:53]} {[%emt 00:01:04]} Ne6
{[%clk 00:03:14]} {[%emt 00:00:12]} 42. Qa7 {[%clk 00:10:42]} {[%emt 00:01:41]}
Rf5 {[%clk 00:03:36]} {[%emt 00:00:09]} 43. Rd6 {[%clk 00:06:11]} {[%emt
00:05:01]} Re5 {[%clk 00:02:19]} {[%emt 00:01:47]} 44. Rxa6 {[%clk 00:05:13]}
{[%emt 00:01:27]} Qf5 {[%clk 00:01:33]} {[%emt 00:01:17]} 45. Bxe6 {[%clk
00:04:31]} {[%emt 00:01:12]} Rxe6 {[%clk 00:02:01]} {[%emt 00:00:01]} 46. Rxe6
Qxe6 {[%clk 00:02:29]} 47. Qd4+ {[%clk 00:04:31]} {[%emt 00:00:23]} Kg8 {[%clk
00:02:43]} {[%emt 00:00:15]} 48. a4 {[%clk 00:02:56]} {[%emt 00:02:06]} bxa4
{[%clk 00:03:04]} {[%emt 00:00:09]} 49. Qxa4 {[%clk 00:03:08]} {[%emt
00:00:18]} e3 {[%clk 00:03:05]} {[%emt 00:00:29]} 50. Qa8+ {[%clk 00:03:20]}
{[%emt 00:00:17]} Kg7 {[%clk 00:03:29]} {[%emt 00:00:06]} 51. fxe3 {[%clk
00:03:46]} {[%emt 00:00:04]} Qxe3+ {[%clk 00:03:49]} {[%emt 00:00:10]} 52. Kh2
{[%clk 00:04:03]} {[%emt 00:00:14]} Qf4+ {[%clk 00:03:35]} {[%emt 00:00:43]} 53.
g3 {[%clk 00:04:28]} {[%emt 00:00:05]} Qd2+ {[%clk 00:03:34]} {[%emt 00:00:31]}
54. Qg2 {[%clk 00:04:55]} {[%emt 00:00:03]} Qd3 {[%clk 00:03:03]} {[%emt
00:01:02]} 55. Qf2 {[%clk 00:05:12]} {[%emt 00:00:13]} Qb5 {[%clk 00:03:06]}
{[%emt 00:00:26]} 56. b4 {[%clk 00:05:14]} {[%emt 00:00:29]} h5 {[%clk
00:02:58]} {[%emt 00:00:37]} 57. h4 {[%clk 00:04:11]} {[%emt 00:01:33]} g5
{[%clk 00:02:50]} {[%emt 00:00:39]} 58. hxg5 {[%clk 00:04:01]} {[%emt
00:00:39]} h4 {[%clk 00:02:10]} {[%emt 00:01:10]} 59. Qd4+ {[%clk 00:03:08]}
{[%emt 00:01:23]} Kg8 {[%clk 00:02:14]} {[%emt 00:00:26]} 60. gxh4 {[%clk
00:03:11]} {[%emt 00:00:28]} Qe2+ {[%clk 00:02:30]} {[%emt 00:00:13]} 61. Kg3
{[%clk 00:03:27]} {[%emt 00:00:15]} Qe1+ {[%clk 00:02:48]} {[%emt 00:00:10]} 62.
Kf3 {[%clk 00:03:46]} {[%emt 00:00:12]} Qf1+ {[%clk 00:02:57]} {[%emt
00:00:21]} 63. Ke4 {[%clk 00:03:53]} {[%emt 00:00:23]} Qe2+ {[%clk 00:03:20]}
{[%emt 00:00:07]} 64. Kd5 {[%clk 00:04:00]} {[%emt 00:00:24]} Qb5+ {[%clk
00:03:34]} {[%emt 00:00:15]} 65. Qc5 {[%clk 00:03:12]} {[%emt 00:01:19]} Qd7+
{[%clk 00:03:43]} {[%emt 00:00:20]} 66. Kc4 {[%clk 00:03:22]} {[%emt 00:00:20]}
Qe6+ {[%clk 00:03:55]} {[%emt 00:00:18]} 67. Qd5 {[%clk 00:03:12]} {[%emt
00:00:40]} Qe2+ {[%clk 00:04:09]} {[%emt 00:00:17]} 68. Kb3 {[%clk 00:03:22]}
{[%emt 00:00:19]} Qe1 {[%clk 00:04:01]} {[%emt 00:00:39]} 69. Qd8+ {[%clk
00:02:57]} {[%emt 00:00:54]} Kg7 {[%clk 00:04:19]} {[%emt 00:00:12]} 70. Qd4+
{[%clk 00:02:51]} {[%emt 00:00:36]} Kg8 {[%clk 00:04:40]} {[%emt 00:00:09]} 71.
b5 {[%clk 00:02:55]} {[%emt 00:00:25]} Qb1+ {[%clk 00:04:57]} {[%emt 00:00:14]}
72. Ka4 {[%clk 00:02:34]} {[%emt 00:00:52]} Qa2+ {[%clk 00:05:15]} {[%emt
00:00:12]} 73. Kb4 {[%clk 00:03:01]} {[%emt 00:00:04]} Qb2+ {[%clk 00:05:38]}
{[%emt 00:00:06]} 74. Ka5 {[%clk 00:02:28]} {[%emt 00:01:03]} Qa2+ {[%clk
00:05:32]} {[%emt 00:00:35]} 75. Kb6 {[%clk 00:02:39]} {[%emt 00:00:20]} Qe6+
{[%clk 00:05:54]} {[%emt 00:00:08]} 76. Kc5 {[%clk 00:02:40]} {[%emt 00:00:30]}
Qe7+ {[%clk 00:06:01]} {[%emt 00:00:22]} 77. Kc4 {[%clk 00:02:08]} {[%emt
00:01:03]} Qe2+ {[%clk 00:06:15]} {[%emt 00:00:15]} 78. Kb4 {[%clk 00:01:52]}
{[%emt 00:00:47]} Qb2+ {[%clk 00:06:35]} {[%emt 00:00:09]} 79. Kc5 {[%clk
00:02:01]} {[%emt 00:00:20]} Qa3+ {[%clk 00:06:27]} {[%emt 00:00:39]} 80. Qb4
{[%clk 00:01:57]} {[%emt 00:00:35]} Qa8 {[%clk 00:06:23]} {[%emt 00:00:34]} 81.
b6 {[%clk 00:01:42]} {[%emt 00:00:45]} Qc8+ {[%clk 00:06:41]} {[%emt 00:00:12]}
82. Kd4 {[%clk 00:01:08]} {[%emt 00:01:04]} Qd7+ {[%clk 00:06:42]} {[%emt
00:00:29]} 83. Ke3 {[%clk 00:01:08]} {[%emt 00:00:30]} Qh3+ {[%clk 00:06:57]}
{[%emt 00:00:15]} 84. Kd2 {[%clk 00:01:19]} {[%emt 00:00:19]} Qg2+ {[%clk
00:07:11]} {[%emt 00:00:16]} 85. Kc1 {[%clk 00:01:39]} {[%emt 00:00:11]} Qf1+
{[%clk 00:07:34]} {[%emt 00:00:06]} 86. Kb2 {[%clk 00:02:00]} {[%emt 00:00:09]}
Qe2+ {[%clk 00:07:58]} {[%emt 00:00:06]} 87. Ka3 {[%clk 00:01:56]} {[%emt
00:00:34]} Qa6+ {[%clk 00:07:56]} {[%emt 00:00:32]} 88. Kb3 {[%clk 00:02:23]}
{[%emt 00:00:03]} Qb7 {[%clk 00:08:19]} {[%emt 00:00:07]} 89. g6 {[%clk
00:01:33]} {[%emt 00:01:20]} fxg6 {[%clk 00:07:26]} {[%emt 00:01:24]} 90. Qc4+
{[%clk 00:01:14]} {[%emt 00:00:49]} Kh8 {[%clk 00:07:55]} 91. Qc5 {[%clk
00:01:12]} {[%emt 00:00:32]} Qf7+ {[%clk 00:08:08]} {[%emt 00:00:17]} 92. Kb4
{[%clk 00:01:30]} {[%emt 00:00:13]} Qf4+ {[%clk 00:08:19]} {[%emt 00:00:18]} 93.
Qd4+ {[%clk 00:01:56]} {[%emt 00:00:04]} 1-0

[Event "Pobeskydi 2026"]
[Site "Frydek-Mistek, Czech Republic"]
[Date "2026.04.06"]
[Round "9.9"]
[White "Policar, Martin"]
[Black "Zemkova, Klara"]
[Result "1-0"]
[TimeControl "90 min+30s/move"]
[WhiteTitle "-"]
[BlackTitle "-"]
[WhiteFideId "23734868"]
[BlackFideId "344117"]
[WhiteElo "1948"]
[BlackElo "1888"]

1. c4 {[%clk 01:26:38]} {[%emt 00:04:22]} f5 {[%clk 01:30:48]} {[%emt
00:00:13]} 2. g3 {[%clk 01:27:01]} {[%emt 00:00:07]} e5 {[%clk 01:31:10]}
{[%emt 00:00:07]} 3. Bg2 {[%clk 01:27:18]} {[%emt 00:00:12]} Nf6 {[%clk
01:31:35]} {[%emt 00:00:06]} 4. Nf3 {[%clk 01:27:30]} {[%emt 00:00:18]} d6
{[%clk 01:31:59]} {[%emt 00:00:06]} 5. b4 {[%clk 01:27:50]} {[%emt 00:00:10]}
g6 {[%clk 01:31:12]} {[%emt 00:01:18]} 6. Bb2 {[%clk 01:28:06]} {[%emt
00:00:14]} Bg7 {[%clk 01:31:38]} {[%emt 00:00:03]} 7. d3 {[%clk 01:27:55]}
{[%emt 00:00:41]} O-O {[%clk 01:32:02]} {[%emt 00:00:05]} 8. Qb3 {[%clk
01:27:04]} {[%emt 00:01:21]} h6 {[%clk 01:31:18]} {[%emt 00:01:15]} 9. c5+
{[%clk 01:25:47]} {[%emt 00:01:47]} Kh7 {[%clk 01:31:42]} {[%emt 00:00:06]} 10.
Nc3 {[%clk 01:20:36]} {[%emt 00:05:40]} e4 {[%clk 01:29:57]} {[%emt 00:02:15]}
11. dxe4 {[%clk 01:20:00]} {[%emt 00:01:07]} fxe4 {[%clk 01:30:23]} {[%emt
00:00:03]} 12. Nd4 {[%clk 01:14:26]} {[%emt 00:06:05]} d5 {[%clk 01:30:23]}
{[%emt 00:00:30]} 13. O-O {[%clk 01:13:03]} {[%emt 00:01:52]} c6 {[%clk
01:29:52]} {[%emt 00:01:02]} 14. e3 {[%clk 01:10:19]} {[%emt 00:03:14]} Ng4
{[%clk 01:27:52]} {[%emt 00:02:30]} 15. Rad1 {[%clk 01:06:35]} {[%emt
00:04:14]} Qg5 {[%clk 01:27:24]} {[%emt 00:00:58]} 16. Nce2 {[%clk 01:02:45]}
{[%emt 00:04:20]} Na6 {[%clk 01:14:15]} {[%emt 00:13:39]} 17. Nf4 {[%clk
00:58:39]} {[%emt 00:04:36]} Qe7 {[%clk 01:12:45]} {[%emt 00:01:58]} 18. b5
{[%clk 00:50:05]} {[%emt 00:09:05]} Nxc5 {[%clk 01:11:15]} {[%emt 00:02:01]} 19.
Qb4 {[%clk 00:49:57]} {[%emt 00:00:38]} Ne5 {[%clk 01:11:19]} {[%emt 00:00:26]}
20. Ba3 {[%clk 00:49:01]} {[%emt 00:01:26]} b6 {[%clk 01:10:05]} {[%emt
00:01:44]} 21. Nxc6 {[%clk 00:48:45]} {[%emt 00:00:46]} Nxc6 {[%clk 01:10:24]}
{[%emt 00:00:10]} 22. bxc6 {[%clk 00:49:00]} {[%emt 00:00:15]} Ba6 {[%clk
01:07:29]} {[%emt 00:03:26]} 23. Rfe1 {[%clk 00:47:47]} {[%emt 00:01:43]} Bc4
{[%clk 01:01:27]} {[%emt 00:06:32]} 24. Nxd5 {[%clk 00:44:24]} {[%emt
00:03:53]} Bxd5 {[%clk 01:01:53]} {[%emt 00:00:04]} 25. Rxd5 {[%clk 00:44:48]}
{[%emt 00:00:06]} Qf7 {[%clk 01:02:19]} {[%emt 00:00:04]} 26. Qd2 {[%clk
00:44:35]} {[%emt 00:00:43]} Nd3 {[%clk 01:02:26]} {[%emt 00:00:23]} 27. Rxd3
{[%clk 00:44:47]} {[%emt 00:00:18]} exd3 {[%clk 01:02:36]} {[%emt 00:00:20]} 28.
Bxf8 {[%clk 00:45:14]} {[%emt 00:00:03]} Rxf8 {[%clk 01:02:59]} {[%emt
00:00:06]} 29. f4 {[%clk 00:44:41]} {[%emt 00:01:02]} Rc8 {[%clk 01:01:04]}
{[%emt 00:02:26]} 30. Qxd3 {[%clk 00:44:03]} {[%emt 00:01:08]} Qxa2 {[%clk
01:01:29]} {[%emt 00:00:04]} 31. f5 {[%clk 00:44:23]} {[%emt 00:00:11]} Qf7
{[%clk 01:00:37]} {[%emt 00:01:21]} 32. fxg6+ {[%clk 00:44:47]} {[%emt
00:00:06]} 1-0

[Event "Pobeskydi 2026"]
[Site "Frydek-Mistek, Czech Republic"]
[Date "2026.04.06"]
[Round "9.10"]
[White "Dobsa, Emma"]
[Black "Szumiec, Jan"]
[Result "0-1"]
[TimeControl "90 min+30s/move"]
[WhiteTitle "-"]
[BlackTitle "-"]
[WhiteFideId "23709391"]
[BlackFideId "41815661"]
[WhiteElo "1921"]
[BlackElo "1826"]

1. e4 {[%clk 01:30:53]} {[%emt 00:00:05]} c5 {[%clk 01:30:53]} {[%emt
00:00:08]} 2. Nf3 {[%clk 01:31:15]} {[%emt 00:00:08]} d6 {[%clk 01:31:11]}
{[%emt 00:00:12]} 3. d4 {[%clk 01:31:39]} {[%emt 00:00:06]} cxd4 {[%clk
01:31:21]} {[%emt 00:00:21]} 4. Nxd4 {[%clk 01:32:06]} {[%emt 00:00:03]} Nf6
{[%clk 01:31:39]} {[%emt 00:00:11]} 5. Nc3 {[%clk 01:32:27]} {[%emt 00:00:09]}
Nc6 {[%clk 01:32:05]} {[%emt 00:00:04]} 6. Bg5 {[%clk 01:32:48]} {[%emt
00:00:09]} e6 {[%clk 01:32:31]} {[%emt 00:00:05]} 7. Qd2 {[%clk 01:33:10]}
{[%emt 00:00:08]} a6 {[%clk 01:32:56]} {[%emt 00:00:05]} 8. O-O-O {[%clk
01:33:30]} {[%emt 00:00:09]} Bd7 {[%clk 01:33:02]} {[%emt 00:00:24]} 9. Kb1
{[%clk 01:33:47]} {[%emt 00:00:13]} Be7 {[%clk 01:33:06]} {[%emt 00:00:26]} 10.
f3 {[%clk 01:33:54]} {[%emt 00:00:23]} Nxd4 {[%clk 01:33:30]} {[%emt 00:00:06]}
11. Qxd4 {[%clk 01:34:17]} {[%emt 00:00:07]} Qc7 {[%clk 01:33:55]} {[%emt
00:00:06]} 12. g4 {[%clk 01:33:34]} {[%emt 00:01:12]} b5 {[%clk 01:29:37]}
{[%emt 00:04:48]} 13. h4 {[%clk 01:32:05]} {[%emt 00:01:58]} Rb8 {[%clk
01:26:08]} {[%emt 00:04:01]} 14. h5 {[%clk 01:26:02]} {[%emt 00:06:32]} h6
{[%clk 01:26:06]} {[%emt 00:00:32]} 15. Be3 {[%clk 01:25:59]} {[%emt 00:00:33]}
b4 {[%clk 01:25:06]} {[%emt 00:01:31]} 16. Ne2 {[%clk 01:26:25]} {[%emt
00:00:03]} e5 {[%clk 01:21:08]} {[%emt 00:04:29]} 17. Qd2 {[%clk 01:24:40]}
{[%emt 00:02:15]} Bc6 {[%clk 01:16:39]} {[%emt 00:04:57]} 18. g5 {[%clk
01:15:15]} {[%emt 00:09:56]} hxg5 {[%clk 01:16:09]} {[%emt 00:00:59]} 19. Bxg5
{[%clk 01:12:22]} {[%emt 00:03:24]} Nxe4 {[%clk 01:14:48]} {[%emt 00:01:51]} 20.
fxe4 {[%clk 01:09:59]} {[%emt 00:02:53]} Bxg5 {[%clk 01:14:08]} {[%emt
00:01:09]} 21. Qxg5 {[%clk 01:03:14]} {[%emt 00:07:16]} Bxe4 {[%clk 01:14:19]}
{[%emt 00:00:19]} 22. Bg2 {[%clk 00:54:52]} {[%emt 00:08:52]} Bxc2+ {[%clk
01:05:41]} {[%emt 00:09:08]} 23. Ka1 {[%clk 00:51:36]} {[%emt 00:03:47]} Bxd1
{[%clk 01:02:02]} {[%emt 00:04:09]} 24. Rxd1 {[%clk 00:51:17]} {[%emt
00:00:48]} f6 {[%clk 00:59:00]} {[%emt 00:03:32]} 25. Qg6+ {[%clk 00:48:28]}
{[%emt 00:03:19]} Kf8 {[%clk 00:55:52]} {[%emt 00:03:36]} 26. Bd5 {[%clk
00:47:30]} {[%emt 00:01:30]} Qd7 {[%clk 00:53:22]} {[%emt 00:03:01]} 27. Rf1
{[%clk 00:43:33]} {[%emt 00:04:27]} Rh6 {[%clk 00:50:37]} {[%emt 00:03:14]} 28.
Rxf6+ {[%clk 00:36:39]} {[%emt 00:07:24]} gxf6 {[%clk 00:50:49]} {[%emt
00:00:17]} 29. Qxh6+ {[%clk 00:37:03]} {[%emt 00:00:07]} Qg7 {[%clk 00:50:44]}
{[%emt 00:00:34]} 30. Qxg7+ {[%clk 00:35:04]} {[%emt 00:02:31]} Kxg7 {[%clk
00:50:53]} {[%emt 00:00:20]} 31. Ng3 {[%clk 00:35:07]} {[%emt 00:00:26]} Kh6
{[%clk 00:45:57]} {[%emt 00:05:27]} 32. Bf7 {[%clk 00:34:19]} {[%emt 00:01:19]}
d5 {[%clk 00:44:28]} {[%emt 00:01:59]} 33. Kb1 {[%clk 00:28:24]} {[%emt
00:06:24]} d4 {[%clk 00:41:43]} {[%emt 00:03:15]} 34. Kc2 {[%clk 00:27:56]}
{[%emt 00:00:58]} Rc8+ {[%clk 00:35:15]} {[%emt 00:06:58]} 35. Kd2 {[%clk
00:26:28]} {[%emt 00:01:58]} a5 {[%clk 00:33:07]} {[%emt 00:02:39]} 36. Ne4
{[%clk 00:22:50]} {[%emt 00:04:07]} Rf8 {[%clk 00:30:15]} {[%emt 00:03:21]} 37.
Nd6 {[%clk 00:22:21]} {[%emt 00:01:00]} Rd8 {[%clk 00:28:50]} {[%emt 00:01:54]}
38. Nf5+ {[%clk 00:21:05]} {[%emt 00:01:47]} Kg5 {[%clk 00:28:34]} {[%emt
00:00:45]} 39. Bg6 {[%clk 00:19:42]} {[%emt 00:01:54]} a4 {[%clk 00:27:59]}
{[%emt 00:01:06]} 40. Ng3 {[%clk 00:18:46]} {[%emt 00:01:25]} Rf8 {[%clk
00:26:28]} {[%emt 00:01:59]} 41. Ne4+ {[%clk 00:18:47]} {[%emt 00:00:31]} Kh6
{[%clk 00:26:41]} {[%emt 00:00:15]} 42. Nd6 {[%clk 00:18:55]} {[%emt 00:00:25]}
a3 {[%clk 00:24:44]} {[%emt 00:02:26]} 43. bxa3 {[%clk 00:17:56]} {[%emt
00:01:29]} bxa3 {[%clk 00:25:05]} {[%emt 00:00:09]} 44. Kd3 {[%clk 00:13:55]}
{[%emt 00:04:32]} Rb8 {[%clk 00:12:08]} {[%emt 00:13:27]} 45. Nc4 {[%clk
00:13:51]} {[%emt 00:00:33]} Rb3+ {[%clk 00:11:59]} {[%emt 00:00:38]} 46. Ke4
{[%clk 00:10:25]} {[%emt 00:03:58]} Rg3 {[%clk 00:10:04]} {[%emt 00:02:22]} 47.
Nd6 {[%clk 00:09:01]} {[%emt 00:01:56]} Rg2 {[%clk 00:08:59]} {[%emt 00:01:35]}
48. Bf7 {[%clk 00:08:22]} {[%emt 00:01:09]} Kg5 {[%clk 00:06:54]} {[%emt
00:02:33]} 49. Kf3 {[%clk 00:07:51]} {[%emt 00:01:03]} Rg1 {[%clk 00:06:32]}
{[%emt 00:00:52]} 50. Kf2 {[%clk 00:06:26]} {[%emt 00:01:56]} Rg4 {[%clk
00:06:37]} {[%emt 00:00:22]} 51. Nc4 {[%clk 00:05:28]} {[%emt 00:01:30]} e4
{[%clk 00:04:59]} {[%emt 00:02:07]} 52. Nxa3 {[%clk 00:05:16]} {[%emt
00:00:43]} e3+ {[%clk 00:04:42]} {[%emt 00:00:47]} 53. Ke2 {[%clk 00:04:57]}
{[%emt 00:00:49]} Rg2+ {[%clk 00:04:58]} {[%emt 00:00:14]} 54. Kd3 {[%clk
00:04:03]} {[%emt 00:01:24]} Rd2+ {[%clk 00:05:16]} {[%emt 00:00:11]} 0-1